fUST/lending_fUST_20260525
["ID","MTS","AMOUNT","RATE_DAILY","PERIOD"]
[422933418,1779650974000,-500.0,9.943e-05,2]
[422933417,1779650974000,-500.13859997,9.943e-05,2]
[422933414,1779650974000,-500.4372812,9.943e-05,2]
[422933415,1779650974000,-500.0,9.943e-05,2]
[422933420,1779650974000,-500.0,9.943e-05,2]
[422933412,1779650974000,-500.14661618,9.943e-05,2]
[422933413,1779650974000,-500.11354166,9.943e-05,2]
[422933410,1779650974000,-500.0,9.943e-05,2]
[422933411,1779650974000,-500.0,9.943e-05,2]
[422933408,1779650974000,-500.17397271,9.943e-05,2]
[422933416,1779650974000,-500.0,9.943e-05,2]
[422933406,1779650974000,-500.0,9.943e-05,2]
[422933409,1779650974000,-500.0,9.943e-05,2]
[422933399,1779650974000,-500.0,9.943e-05,2]
[422933398,1779650974000,-500.42010782,9.943e-05,2]
[422933400,1779650974000,-500.0,9.943e-05,2]
[422933402,1779650974000,-500.0,9.943e-05,2]
[422933397,1779650974000,-500.0,9.943e-05,2]
[422933404,1779650974000,-640.06322723,9.943e-05,2]
[422933403,1779650974000,-500.35908657,9.943e-05,2]
[422933405,1779650974000,-500.0,9.943e-05,2]
[422933407,1779650974000,-411.20413488,9.943e-05,2]
[422933401,1779650974000,-500.90028921,9.943e-05,2]
[422933438,1779650975000,-500.0,9.943e-05,2]
[422933435,1779650975000,-500.1096463,9.943e-05,2]
[422933436,1779650975000,-500.0,9.943e-05,2]
[422933434,1779650975000,-500.0,9.943e-05,2]
[422933433,1779650975000,-500.0,9.943e-05,2]
[422933432,1779650975000,-500.0,9.943e-05,2]
[422933430,1779650975000,-500.0,9.943e-05,2]
[422933431,1779650975000,-500.0,9.943e-05,2]
[422933428,1779650975000,-500.0,9.943e-05,2]
[422933429,1779650975000,-500.0,9.943e-05,2]
[422933426,1779650975000,-500.0,9.943e-05,2]
[422933425,1779650975000,-500.0,9.943e-05,2]
[422933422,1779650975000,-500.0,9.943e-05,2]
[422933423,1779650975000,-500.0,9.943e-05,2]
[422933421,1779650975000,-500.0,9.943e-05,2]
[422933427,1779650975000,-500.0,9.943e-05,2]
[422933424,1779650975000,-500.0,9.943e-05,2]
[422933439,1779650975000,-500.13873665,9.943e-05,2]
[422933441,1779650975000,-500.0,9.943e-05,2]
[422933437,1779650975000,-500.0,9.943e-05,2]
[422933456,1779650975000,-9.16203218,9.943e-05,2]
[422933455,1779650975000,-500.0,9.943e-05,2]
[422933454,1779650975000,-264.94053097,9.943e-05,2]
[422933451,1779650975000,-314.74062126,9.943e-05,2]
[422933452,1779650975000,-500.0,9.943e-05,2]
[422933450,1779650975000,-500.0,9.943e-05,2]
[422933448,1779650975000,-500.0,9.943e-05,2]
[422933453,1779650975000,-500.0,9.943e-05,2]
[422933447,1779650975000,-500.0,9.943e-05,2]
[422933446,1779650975000,-500.0,9.943e-05,2]
[422933445,1779650975000,-500.0,9.943e-05,2]
[422933444,1779650975000,-500.0,9.943e-05,2]
[422933443,1779650975000,-500.0,9.943e-05,2]
[422933442,1779650975000,-500.0,9.943e-05,2]
[422933449,1779650975000,-501.76599074,9.943e-05,2]
[422933440,1779650975000,-500.0,9.943e-05,2]
[422933457,1779650986000,-354.49674524,9.943e-05,2]
[422933487,1779651035000,-500.0,8.219e-05,2]
[422933488,1779651035000,-500.0,8.493e-05,2]
[422933489,1779651035000,-500.0,8.493e-05,2]
[422933490,1779651035000,-500.0,8.493e-05,2]
[422933495,1779651035000,-559.13576128,8.493e-05,2]
[422933492,1779651035000,-500.0,8.493e-05,2]
[422933493,1779651035000,-500.0,8.493e-05,2]
[422933494,1779651035000,-500.0,8.493e-05,2]
[422933486,1779651035000,-500.0,8.219e-05,2]
[422933491,1779651035000,-584.84,8.493e-05,2]
[422933485,1779651035000,-500.0,8.219e-05,2]
[422933478,1779651035000,-500.0,8.219e-05,2]
[422933484,1779651035000,-500.0,8.219e-05,2]
[422933482,1779651035000,-500.0,8.219e-05,2]
[422933480,1779651035000,-500.0,8.219e-05,2]
[422933481,1779651035000,-500.0,8.219e-05,2]
[422933479,1779651035000,-500.0,8.219e-05,2]
[422933496,1779651035000,-500.0,8.493e-05,2]
[422933477,1779651035000,-500.0,8.219e-05,2]
[422933476,1779651035000,-500.43712466,8.219e-05,2]
[422933475,1779651035000,-500.0,8.219e-05,2]
[422933474,1779651035000,-287.0,8.218e-05,2]
[422933483,1779651035000,-500.0,8.219e-05,2]
[422933497,1779651035000,-500.0,8.493e-05,2]
[422933516,1779651035000,-500.0,9.943e-05,2]
[422933501,1779651035000,-500.0,8.767e-05,2]
[422933499,1779651035000,-500.0,8.767e-05,2]
[422933521,1779651035000,-226.41364325,9.943e-05,2]
[422933520,1779651035000,-500.0,9.943e-05,2]
[422933518,1779651035000,-500.0,9.943e-05,2]
[422933522,1779651035000,-500.0,9.943e-05,2]
[422933517,1779651035000,-500.0,9.943e-05,2]
[422933515,1779651035000,-500.0,9.863e-05,2]
[422933512,1779651035000,-500.0,9.589e-05,2]
[422933510,1779651035000,-500.0,9.589e-05,2]
[422933511,1779651035000,-500.0,9.589e-05,2]
[422933509,1779651035000,-500.0,9.315e-05,2]
[422933519,1779651035000,-500.0,9.943e-05,2]
[422933514,1779651035000,-500.0,9.863e-05,2]
[422933498,1779651035000,-500.0,8.767e-05,2]
[422933513,1779651035000,-500.0,9.863e-05,2]
[422933500,1779651035000,-500.0,8.767e-05,2]
[422933502,1779651035000,-500.0,9.041e-05,2]
[422933503,1779651035000,-500.0,9.041e-05,2]
[422933507,1779651035000,-412.84,9.315e-05,2]
[422933504,1779651035000,-500.0,9.041e-05,2]
[422933508,1779651035000,-500.0,9.315e-05,2]
[422933506,1779651035000,-500.0,9.315e-05,2]
[422933505,1779651035000,-500.0,9.041e-05,2]
[422933539,1779651036000,-500.0,9.943e-05,2]
[422933531,1779651036000,-500.0,9.943e-05,2]
[422933538,1779651036000,-500.0,9.943e-05,2]
[422933535,1779651036000,-500.0,9.943e-05,2]
[422933536,1779651036000,-500.0,9.943e-05,2]
[422933534,1779651036000,-500.0,9.943e-05,2]
[422933532,1779651036000,-5000.0,9.943e-05,2]
[422933525,1779651036000,-500.0,9.943e-05,2]
[422933529,1779651036000,-500.0,9.943e-05,2]
[422933528,1779651036000,-500.0,9.943e-05,2]
[422933527,1779651036000,-500.0,9.943e-05,2]
[422933524,1779651036000,-500.0,9.943e-05,2]
[422933523,1779651036000,-500.0,9.943e-05,2]
[422933526,1779651036000,-500.0,9.943e-05,2]
[422933537,1779651036000,-500.0,9.943e-05,2]
[422933530,1779651036000,-500.0,9.943e-05,2]
[422933540,1779651036000,-500.0,9.943e-05,2]
[422933533,1779651036000,-500.0,9.943e-05,2]
[422933542,1779651036000,-500.0,9.943e-05,2]
[422933558,1779651036000,-731.96300616,0.00010136,2]
[422933557,1779651036000,-3294.84,0.00010136,2]
[422933555,1779651036000,-500.0,0.00010136,2]
[422933556,1779651036000,-500.0,0.00010136,2]
[422933541,1779651036000,-500.0,9.943e-05,2]
[422933553,1779651036000,-500.0,0.00010136,2]
[422933551,1779651036000,-500.0,0.00010136,2]
[422933546,1779651036000,-500.0,9.943e-05,2]
[422933554,1779651036000,-500.0,0.00010136,2]
[422933552,1779651036000,-500.0,0.00010136,2]
[422933549,1779651036000,-295.44,0.00010136,2]
[422933547,1779651036000,-511.82,0.00010136,2]
[422933550,1779651036000,-500.0,0.00010136,2]
[422933545,1779651036000,-500.0,9.943e-05,2]
[422933543,1779651036000,-500.0,9.943e-05,2]
[422933544,1779651036000,-500.0,9.943e-05,2]
[422933548,1779651036000,-500.0,0.00010136,2]
[422933652,1779651038000,-231.53,0.00010217,2]
[422933650,1779651038000,-175.09,0.00010217,2]
[422933654,1779651038000,-408.18,0.00010217,2]
[422933656,1779651038000,-280.12,0.00010217,2]
[422933658,1779651038000,-202.91,0.00010217,2]
[422933659,1779651038000,-500.0,0.00010217,2]
[422933661,1779651038000,-223.63,0.00010217,2]
[422933679,1779651038000,-500.0,0.00010217,2]
[422933677,1779651038000,-333.72812454,0.00010217,2]
[422933663,1779651038000,-239.67,0.00010217,2]
[422933675,1779651038000,-283.43,0.00010217,2]
[422933667,1779651038000,-500.0,0.00010217,2]
[422933665,1779651038000,-225.30640717,0.00010217,2]
[422933669,1779651038000,-434.72381734,0.00010217,2]
[422933671,1779651038000,-643.94,0.00010217,2]
[422933641,1779651038000,-500.0,0.00010217,2]
[422933673,1779651038000,-500.0,0.00010217,2]
[422933643,1779651038000,-500.0,0.00010217,2]
[422933621,1779651038000,-500.0,0.00010136,2]
[422933639,1779651038000,-500.0,0.00010217,2]
[422933614,1779651038000,-500.0,8.219e-05,2]
[422933619,1779651038000,-500.0,0.00010136,2]
[422933683,1779651038000,-288.41,0.00010217,2]
[422933618,1779651038000,-54.05699384,0.00010136,2]
[422933620,1779651038000,-310.83,0.00010136,2]
[422933629,1779651038000,-500.0,0.00010217,2]
[422933622,1779651038000,-500.0,0.00010217,2]
[422933637,1779651038000,-500.0,0.00010217,2]
[422933623,1779651038000,-500.0,0.00010217,2]
[422933625,1779651038000,-500.0,0.00010217,2]
[422933633,1779651038000,-571.03919234,0.00010217,2]
[422933631,1779651038000,-500.0,0.00010217,2]
[422933635,1779651038000,-500.0,0.00010217,2]
[422933645,1779651038000,-500.0,0.00010217,2]
[422933646,1779651038000,-500.0,0.00010217,2]
[422933648,1779651038000,-381.14,0.00010217,2]
[422933627,1779651038000,-500.0,0.00010217,2]
[422933681,1779651038000,-500.0,0.00010217,2]
[422933616,1779651038000,-306.39,8.493e-05,2]
[422933688,1779651038000,-500.0,0.00010217,2]
[422933733,1779651038000,-500.0,0.00010217,2]
[422933745,1779651038000,-500.0,0.00010217,2]
[422933743,1779651038000,-500.66916647,0.00010217,2]
[422933747,1779651038000,-500.0,0.00010217,2]
[422933749,1779651038000,-500.29625024,0.00010217,2]
[422933751,1779651038000,-500.0,0.00010217,2]
[422933737,1779651038000,-282.11,0.00010217,2]
[422933741,1779651038000,-500.0,0.00010217,2]
[422933739,1779651038000,-500.0,0.00010217,2]
[422933735,1779651038000,-500.0,0.00010217,2]
[422933753,1779651038000,-500.0,0.00010217,2]
[422933755,1779651038000,-500.0,0.00010217,2]
[422933759,1779651038000,-500.0,0.00010217,2]
[422933763,1779651038000,-345.80442385,0.00010217,2]
[422933765,1779651038000,-208.61564439,0.00010217,2]
[422933761,1779651038000,-500.0,0.00010217,2]
[422933685,1779651038000,-340.21,0.00010217,2]
[422933731,1779651038000,-500.0,0.00010217,2]
[422933728,1779651038000,-500.0,0.00010217,2]
[422933757,1779651038000,-500.0,0.00010217,2]
[422933714,1779651038000,-501.1964215,0.00010217,2]
[422933716,1779651038000,-500.28062496,0.00010217,2]
[422933690,1779651038000,-500.0,0.00010217,2]
[422933692,1779651038000,-500.0,0.00010217,2]
[422933695,1779651038000,-500.0,0.00010217,2]
[422933698,1779651038000,-502.00161589,0.00010217,2]
[422933700,1779651038000,-522.7,0.00010217,2]
[422933702,1779651038000,-500.0,0.00010217,2]
[422933704,1779651038000,-500.0,0.00010217,2]
[422933686,1779651038000,-500.0,0.00010217,2]
[422933708,1779651038000,-613.3,0.00010217,2]
[422933712,1779651038000,-500.0,0.00010217,2]
[422933718,1779651038000,-649.65110222,0.00010217,2]
[422933720,1779651038000,-500.0,0.00010217,2]
[422933722,1779651038000,-500.0,0.00010217,2]
[422933724,1779651038000,-500.0,0.00010217,2]
[422933710,1779651038000,-158.0767059,0.00010217,2]
[422933706,1779651038000,-500.0,0.00010217,2]
[422933726,1779651038000,-500.67845505,0.00010217,2]
[422933850,1779651039000,-500.0,0.00010217,2]
[422933852,1779651039000,-500.0,0.00010217,2]
[422933849,1779651039000,-500.0,0.00010217,2]
[422933845,1779651039000,-500.0,0.00010217,2]
[422933843,1779651039000,-500.0,0.00010217,2]
[422933847,1779651039000,-500.0,0.00010217,2]
[422933838,1779651039000,-500.0,0.00010217,2]
[422933840,1779651039000,-500.0,0.00010217,2]
[422933834,1779651039000,-392.05618562,0.00010217,2]
[422933828,1779651039000,-500.0,0.00010217,2]
[422933856,1779651039000,-500.0,0.00010217,2]
[422933830,1779651039000,-500.0,0.00010217,2]
[422933836,1779651039000,-500.0,0.00010217,2]
[422933861,1779651039000,-500.0,0.00010217,2]
[422933866,1779651039000,-500.0,0.00010217,2]
[422933859,1779651039000,-500.0,0.00010217,2]
[422933863,1779651039000,-500.0,0.00010217,2]
[422933874,1779651039000,-500.0,0.00010217,2]
[422933877,1779651039000,-503.58170175,0.00010217,2]
[422933879,1779651039000,-500.0,0.00010217,2]
[422933872,1779651039000,-500.0,0.00010217,2]
[422933883,1779651039000,-500.0,0.00010217,2]
[422933868,1779651039000,-500.0,0.00010217,2]
[422933880,1779651039000,-500.0,0.00010217,2]
[422933864,1779651039000,-500.0,0.00010217,2]
[422933887,1779651039000,-500.0,0.00010217,2]
[422933884,1779651039000,-500.0,0.00010217,2]
[422933832,1779651039000,-501.70206031,0.00010217,2]
[422933854,1779651039000,-500.0,0.00010217,2]
[422933815,1779651039000,-500.0,0.00010217,2]
[422933792,1779651039000,-500.0,0.00010217,2]
[422933826,1779651039000,-500.0,0.00010217,2]
[422933770,1779651039000,-500.0,0.00010217,2]
[422933773,1779651039000,-500.0,0.00010217,2]
[422933769,1779651039000,-500.0,0.00010217,2]
[422933766,1779651039000,-500.71464055,0.00010217,2]
[422933776,1779651039000,-500.0,0.00010217,2]
[422933774,1779651039000,-477.51431663,0.00010217,2]
[422933779,1779651039000,-500.0,0.00010217,2]
[422933780,1779651039000,-500.0,0.00010217,2]
[422933782,1779651039000,-417.24811089,0.00010217,2]
[422933784,1779651039000,-632.93314454,0.00010217,2]
[422933888,1779651039000,-500.0,0.00010217,2]
[422933788,1779651039000,-500.0,0.00010217,2]
[422933790,1779651039000,-500.0,0.00010217,2]
[422933811,1779651039000,-500.0,0.00010217,2]
[422933786,1779651039000,-500.0,0.00010217,2]
[422933794,1779651039000,-500.0,0.00010217,2]
[422933802,1779651039000,-500.0,0.00010217,2]
[422933796,1779651039000,-500.0,0.00010217,2]
[422933798,1779651039000,-500.0,0.00010217,2]
[422933800,1779651039000,-500.0,0.00010217,2]
[422933805,1779651039000,-500.0,0.00010217,2]
[422933819,1779651039000,-500.0,0.00010217,2]
[422933807,1779651039000,-500.0,0.00010217,2]
[422933821,1779651039000,-501.16335132,0.00010217,2]
[422933824,1779651039000,-500.0,0.00010217,2]
[422933810,1779651039000,-500.0,0.00010217,2]
[422933813,1779651039000,-500.0,0.00010217,2]
[422933817,1779651039000,-500.0,0.00010217,2]
[422933804,1779651039000,-500.0,0.00010217,2]
[422933890,1779651039000,-500.0,0.00010217,2]
[422933870,1779651039000,-500.0,0.00010217,2]
[422933897,1779651039000,-500.0,0.00010217,2]
[422933977,1779651039000,-184.38,0.00010491,2]
[422933973,1779651039000,-500.28130502,0.00010491,2]
[422933980,1779651039000,-557.61482499,0.00010491,2]
[422933967,1779651039000,-388.05,0.00010491,2]
[422933969,1779651039000,-634.76,0.00010491,2]
[422933975,1779651039000,-500.0,0.00010491,2]
[422933971,1779651039000,-500.0,0.00010491,2]
[422933979,1779651039000,-500.0,0.00010491,2]
[422933988,1779651039000,-493.42,0.00010491,2]
[422933986,1779651039000,-500.0,0.00010491,2]
[422933992,1779651039000,-500.0,0.00010491,2]
[422933984,1779651039000,-500.0,0.00010491,2]
[422933990,1779651039000,-501.97165941,0.00010491,2]
[422933994,1779651039000,-158.66594916,0.00010491,2]
[422934004,1779651039000,-617.7,0.00010491,2]
[422934006,1779651039000,-500.0,0.00010491,2]
[422934007,1779651039000,-500.0,0.00010491,2]
[422934005,1779651039000,-500.0,0.00010491,2]
[422933996,1779651039000,-500.0,0.00010491,2]
[422933997,1779651039000,-500.0,0.00010491,2]
[422933998,1779651039000,-500.0,0.00010491,2]
[422934001,1779651039000,-442.24155616,0.00010491,2]
[422934002,1779651039000,-500.0,0.00010491,2]
[422934000,1779651039000,-500.0,0.00010491,2]
[422933893,1779651039000,-252.34563867,0.00010217,2]
[422934003,1779651039000,-500.0,0.00010491,2]
[422934008,1779651039000,-500.0,0.00010491,2]
[422934009,1779651039000,-500.0,0.00010491,2]
[422934010,1779651039000,-500.0,0.00010491,2]
[422933982,1779651039000,-500.0,0.00010491,2]
[422933965,1779651039000,-500.0,0.00010491,2]
[422933999,1779651039000,-517.66,0.00010491,2]
[422933961,1779651039000,-192.38,0.00010491,2]
[422933963,1779651039000,-500.0,0.00010491,2]
[422933895,1779651039000,-500.0,0.00010217,2]
[422933898,1779651039000,-500.0,0.00010217,2]
[422933900,1779651039000,-500.0,0.00010217,2]
[422933904,1779651039000,-500.0,0.00010217,2]
[422933910,1779651039000,-500.0,0.00010217,2]
[422933902,1779651039000,-500.0,0.00010217,2]
[422933906,1779651039000,-500.0,0.00010217,2]
[422933912,1779651039000,-500.0,0.00010217,2]
[422933919,1779651039000,-234.09,0.00010217,2]
[422933921,1779651039000,-229.34,0.00010217,2]
[422933914,1779651039000,-500.0,0.00010217,2]
[422933927,1779651039000,-500.0,0.0001041,2]
[422933925,1779651039000,-500.0,0.00010217,2]
[422933908,1779651039000,-500.0,0.00010217,2]
[422933916,1779651039000,-270.94,0.00010217,2]
[422933923,1779651039000,-487.82,0.00010217,2]
[422933954,1779651039000,-500.0,0.0001041,2]
[422933959,1779651039000,-500.0,0.00010491,2]
[422933956,1779651039000,-212.28,0.00010491,2]
[422933943,1779651039000,-500.0,0.0001041,2]
[422933952,1779651039000,-500.0,0.0001041,2]
[422933958,1779651039000,-372.06,0.00010491,2]
[422933941,1779651039000,-500.0,0.0001041,2]
[422933935,1779651039000,-500.0,0.0001041,2]
[422933929,1779651039000,-171.64,0.0001041,2]
[422933946,1779651039000,-500.0,0.0001041,2]
[422933948,1779651039000,-3294.84,0.0001041,2]
[422933950,1779651039000,-786.02,0.0001041,2]
[422933938,1779651039000,-500.0,0.0001041,2]
[422934059,1779651040000,-500.0,0.00010491,2]
[422934060,1779651040000,-500.0,0.00010491,2]
[422934051,1779651040000,-500.0,0.00010491,2]
[422934055,1779651040000,-522.04,0.00010491,2]
[422934056,1779651040000,-500.0,0.00010491,2]
[422934057,1779651040000,-467.9,0.00010491,2]
[422934058,1779651040000,-602.6,0.00010491,2]
[422934061,1779651040000,-500.0,0.00010491,2]
[422934071,1779651040000,-166.98324235,0.00010684,2]
[422934072,1779651040000,-502.64,0.00010765,2]
[422934073,1779651040000,-500.0,0.00010765,2]
[422934054,1779651040000,-500.0,0.00010491,2]
[422934062,1779651040000,-500.0,0.00010684,2]
[422934066,1779651040000,-500.0,0.00010684,2]
[422934067,1779651040000,-500.0,0.00010684,2]
[422934069,1779651040000,-786.02,0.00010684,2]
[422934068,1779651040000,-3294.84,0.00010684,2]
[422934065,1779651040000,-500.0,0.00010684,2]
[422934070,1779651040000,-219.16,0.00010684,2]
[422934063,1779651040000,-500.0,0.00010684,2]
[422934075,1779651040000,-178.16,0.00010765,2]
[422934086,1779651040000,-500.0,0.00010765,2]
[422934085,1779651040000,-500.70175716,0.00010765,2]
[422934053,1779651040000,-500.0,0.00010491,2]
[422934074,1779651040000,-500.0,0.00010765,2]
[422934064,1779651040000,-500.0,0.00010684,2]
[422934052,1779651040000,-185.28,0.00010491,2]
[422934026,1779651040000,-500.0,0.00010491,2]
[422934050,1779651040000,-500.0,0.00010491,2]
[422934076,1779651040000,-264.87,0.00010765,2]
[422934012,1779651040000,-344.42134783,0.00010491,2]
[422934016,1779651040000,-500.0,0.00010491,2]
[422934013,1779651040000,-500.0,0.00010491,2]
[422934011,1779651040000,-500.0,0.00010491,2]
[422934015,1779651040000,-500.0,0.00010491,2]
[422934022,1779651040000,-500.0,0.00010491,2]
[422934020,1779651040000,-531.42,0.00010491,2]
[422934014,1779651040000,-500.42464554,0.00010491,2]
[422934017,1779651040000,-500.0,0.00010491,2]
[422934018,1779651040000,-609.96,0.00010491,2]
[422934024,1779651040000,-500.0,0.00010491,2]
[422934037,1779651040000,-500.0,0.00010491,2]
[422934027,1779651040000,-500.0,0.00010491,2]
[422934035,1779651040000,-500.0,0.00010491,2]
[422934042,1779651040000,-500.0,0.00010491,2]
[422934039,1779651040000,-500.0,0.00010491,2]
[422934041,1779651040000,-500.0,0.00010491,2]
[422934033,1779651040000,-500.0,0.00010491,2]
[422934031,1779651040000,-500.0,0.00010491,2]
[422934029,1779651040000,-500.0,0.00010491,2]
[422934043,1779651040000,-500.0,0.00010491,2]
[422934044,1779651040000,-516.94,0.00010491,2]
[422934046,1779651040000,-500.0,0.00010491,2]
[422934048,1779651040000,-333.25954256,0.00010491,2]
[422934049,1779651040000,-500.0,0.00010491,2]
[422934078,1779651040000,-500.0,0.00010765,2]
[422934133,1779651040000,-786.02,0.00011232,2]
[422934080,1779651040000,-187.82,0.00010765,2]
[422934113,1779651040000,-295.31,0.00011039,2]
[422934120,1779651040000,-500.0,0.00011039,2]
[422934115,1779651040000,-500.0,0.00011039,2]
[422934122,1779651040000,-311.6,0.00011039,2]
[422934117,1779651040000,-500.0,0.00011039,2]
[422934114,1779651040000,-500.0,0.00011039,2]
[422934123,1779651040000,-502.3,0.00011039,2]
[422934119,1779651040000,-500.0,0.00011039,2]
[422934121,1779651040000,-220.9,0.00011039,2]
[422934118,1779651040000,-381.46,0.00011039,2]
[422934116,1779651040000,-291.02,0.00011039,2]
[422934124,1779651040000,-309.36,0.00011039,2]
[422934126,1779651040000,-500.0,0.00011039,2]
[422934127,1779651040000,-500.0,0.00011232,2]
[422934131,1779651040000,-508.79,0.00011232,2]
[422934128,1779651040000,-500.0,0.00011232,2]
[422934129,1779651040000,-500.0,0.00011232,2]
[422934130,1779651040000,-500.0,0.00011232,2]
[422934135,1779651040000,-500.0,0.00011313,2]
[422934134,1779651040000,-500.0,0.00011313,2]
[422934132,1779651040000,-3294.84,0.00011232,2]
[422934136,1779651040000,-500.0,0.00011313,2]
[422934137,1779651040000,-179.44,0.00011313,2]
[422934083,1779651040000,-500.0,0.00010765,2]
[422934138,1779651040000,-500.0,0.00011313,2]
[422934112,1779651040000,-500.0,0.00011039,2]
[422934111,1779651040000,-253.62,0.00011039,2]
[422934125,1779651040000,-500.0,0.00011039,2]
[422934107,1779651040000,-500.0,0.00010958,2]
[422934081,1779651040000,-500.0,0.00010765,2]
[422934082,1779651040000,-281.52,0.00010765,2]
[422934108,1779651040000,-3294.84,0.00010958,2]
[422934084,1779651040000,-500.0,0.00010765,2]
[422934079,1779651040000,-500.0,0.00010765,2]
[422934087,1779651040000,-289.82,0.00010765,2]
[422934088,1779651040000,-500.0,0.00010765,2]
[422934090,1779651040000,-500.0,0.00010765,2]
[422934092,1779651040000,-500.0,0.00010765,2]
[422934091,1779651040000,-198.14,0.00010765,2]
[422934095,1779651040000,-500.0,0.00010765,2]
[422934093,1779651040000,-237.55,0.00010765,2]
[422934094,1779651040000,-500.0,0.00010765,2]
[422934089,1779651040000,-317.88,0.00010765,2]
[422934102,1779651040000,-500.0,0.00010958,2]
[422934097,1779651040000,-500.0,0.00010765,2]
[422934096,1779651040000,-489.82,0.00010765,2]
[422934100,1779651040000,-500.0,0.00010765,2]
[422934110,1779651040000,-422.64207176,0.00010959,7]
[422934099,1779651040000,-500.0,0.00010765,2]
[422934101,1779651040000,-444.74,0.00010765,2]
[422934109,1779651040000,-786.02,0.00010958,2]
[422934104,1779651040000,-500.0,0.00010958,2]
[422934103,1779651040000,-225.7,0.00010958,2]
[422934098,1779651040000,-500.0,0.00010765,2]
[422934106,1779651040000,-500.0,0.00010958,2]
[422934105,1779651040000,-500.0,0.00010958,2]
[422934178,1779651041000,-500.0,0.00012328,2]
[422934183,1779651041000,-500.0,0.00012602,2]
[422934166,1779651041000,-500.0,0.00012054,2]
[422934185,1779651041000,-500.0,0.00012602,2]
[422934186,1779651041000,-3294.84,0.00012602,2]
[422934180,1779651041000,-786.02,0.00012328,2]
[422934164,1779651041000,-500.0,0.00011861,2]
[422934179,1779651041000,-3294.84,0.00012328,2]
[422934171,1779651041000,-500.0,0.00012135,2]
[422934170,1779651041000,-786.02,0.00012054,2]
[422934176,1779651041000,-500.0,0.00012328,2]
[422934175,1779651041000,-537.28,0.00012135,2]
[422934181,1779651041000,-367.46,0.00012409,2]
[422934196,1779651041000,-267.08460119,0.00012957,2]
[422934182,1779651041000,-500.0,0.00012409,2]
[422934177,1779651041000,-500.0,0.00012328,2]
[422934187,1779651041000,-786.02,0.00012602,2]
[422934189,1779651041000,-500.0,0.00012683,2]
[422934197,1779651041000,-296.78539881,0.00012957,2]
[422934198,1779651041000,-250.0,0.00013138,2]
[422934199,1779651041000,-290.15,0.0001315,2]
[422934191,1779651041000,-323.74,0.00012876,2]
[422934188,1779651041000,-381.20741995,0.00012622,2]
[422934190,1779651041000,-257.79088858,0.00012876,2]
[422934193,1779651041000,-500.0,0.00012876,2]
[422934195,1779651041000,-786.02,0.00012876,2]
[422934172,1779651041000,-501.0163257,0.00012135,2]
[422934184,1779651041000,-500.0,0.00012602,2]
[422934167,1779651041000,-500.0,0.00012054,2]
[422934140,1779651041000,-373.26,0.00011313,2]
[422934169,1779651041000,-3294.84,0.00012054,2]
[422934194,1779651041000,-3294.84,0.00012876,2]
[422934139,1779651041000,-500.0,0.00011313,2]
[422934149,1779651041000,-500.0,0.00011587,2]
[422934141,1779651041000,-500.0,0.00011313,2]